[Event "57th Biel Festival MTO 2024"]
[White "Kwiatkowski,Jakub"]
[Black "Munkhzul,Turmunkh"]
[Site "Biel"]
[Round "4.38"]
[Annotator "RC"]
[Result "1/2-1/2"]
[Date "2024.07.18"]
[WhiteElo "2024"]
[BlackElo "2232"]
[PlyCount "84"]
[TimeControl "60"]

1. e4 {[%emt 0:0:4]} e5 {[%emt 0:0:11]} 2. Nf3 {[%emt 0:0:10]} Nf6 {[%emt 0:0:11]} 3. d4 {[%emt 0:0:31]} Nxe4 {[%emt 0:0:12]} 4. Bd3 {[%emt 0:0:9]} d5 {[%emt 0:0:20]} 5. Nxe5 {[%emt 0:0:11]} Nd7 {[%emt 0:0:16]} 6. Nxd7 {[%emt 0:0:9]} Bxd7 {[%emt 0:0:7]} 7. O-O {[%emt 0:0:17]} Bd6 {[%emt 0:0:14]} 8. c4 {[%emt 0:0:35]} O-O {[%emt 0:0:17]} 9. Nc3 {[%emt 0:3:56]} Nxc3 {[%emt 0:0:26]} 10. bxc3 {[%emt 0:0:12]} dxc4 {[%emt 0:2:7]} 11. Bxc4 {[%emt 0:0:17]} Qh4 {[%emt 0:1:49]} 12. g3 {[%emt 0:4:29]} Qf6 {[%emt 0:2:33]} 13. Bd5 {[%emt 0:6:54]} c6 {[%emt 0:6:13]} 14. Bg2 {[%emt 0:2:8]} Rae8 {[%emt 0:3:56]} 15. Be3 {[%emt 0:5:54]} Bf5 {[%emt 0:3:46]} 16. Re1 {[%emt 0:13:24]} Re7 {[%emt 0:3:49]} 17. Qd2 {[%emt 0:13:25]} Rfe8 {[%emt 0:5:1]} 18. c4 {[%emt 0:5:45]} h6 {[%emt 0:4:55]} 19. Rac1 {[%emt 0:8:46]} Ba3 {[%emt 0:4:3]} 20. Rcd1 {[%emt 0:1:10]} Bd6 {[%emt 0:16:53]} 21. Rc1 {[%emt 0:0:21]} Qg6 {[%emt 0:3:23]} 22. Qa5 {[%emt 0:5:47]} b6 {[%emt 0:14:27]} 23. Qc3 {[%emt 0:0:41]} Bb8 {[%emt 0:4:7]} 24. a4 {[%emt 0:6:46]} h5 {[%emt 0:3:7]} 25. c5 {[%emt 0:6:4]} h4 {[%emt 0:3:6]} 26. cxb6 {[%emt 0:1:53]} axb6 {[%emt 0:3:13]} 27. Qxc6 {[%emt 0:1:22]} hxg3 {[%emt 0:3:33]} 28. hxg3 {[%emt 0:1:7]} Bxg3 {[%emt 0:5:55]} 29. Qxg6 {[%emt 0:0:28]} Bxg6 {[%emt 0:0:34]} 30. Bc6 {[%emt 0:1:2]} Bh4 {[%emt 0:2:23]} 31. Bxe8 {[%emt 0:0:11]} Rxe8 {[%emt 0:0:4]} 32. d5 {[%emt 0:3:55]} Re4 {[%emt 0:1:29]} 33. Bxb6 {[%emt 0:1:13]} Rg4+ {[%emt 0:2:17]} 34. Kh2 {[%emt 0:0:16]} Bg5 {[%emt 0:0:24]} 35. Be3 {[%emt 0:1:34]} Bf6 {[%emt 0:0:25]} 36. f4 {[%emt 0:2:1]} Be4 {[%emt 0:0:35]} 37. d6 {[%emt 0:1:35]} g5 {[%emt 0:3:18]} 38. d7 {[%emt 0:3:5]} Rg2+ {[%emt 0:0:10]} 39. Kh1 {[%emt 0:0:24]} Rg3+ {[%emt 0:4:46]} 40. Kh2 {[%emt 0:0:19]} Rg2+ {[%emt 0:0:11]} 41. Kh1 {[%emt 0:50:17]} Rg4+ {[%emt 0:15:9]} 42. Kh2 {[%emt 0:0:0]} Rg2+ {[%emt 0:4:19]} 1/2-1/2

[Event "57th Biel Festival MTO 2024"]
[White "Winkelman,Albert"]
[Black "Haugner,Jan"]
[Site "Biel"]
[Round "4.39"]
[Annotator "RC"]
[Result "1-0"]
[Date "2024.07.18"]
[WhiteElo "2243"]
[BlackElo "2072"]
[PlyCount "61"]
[TimeControl "60"]

1. c4 {[%emt 0:0:8]} e5 {[%emt 0:0:9]} 2. Nc3 {[%emt 0:0:12]} Nc6 {[%emt 0:0:7]} 3. Nf3 {[%emt 0:0:18]} f5 {[%emt 0:0:11]} 4. e3 {[%emt 0:23:47]} Nf6 {[%emt 0:7:50]} 5. d4 {[%emt 0:0:10]} e4 {[%emt 0:0:42]} 6. Nd2 {[%emt 0:0:17]} Bb4 {[%emt 0:10:37]} 7. Qb3 {[%emt 0:3:12]} a5 {[%emt 0:14:20]} 8. a3 {[%emt 0:1:37]} Be7 {[%emt 0:1:38]} 9. Be2 {[%emt 0:0:23]} O-O {[%emt 0:2:44]} 10. h3 {[%emt 0:3:57]} d6 {[%emt 0:5:46]} 11. Rg1 {[%emt 0:1:24]} h5 {[%emt 0:14:10]} 12. Nd5 {[%emt 0:3:3]} h4 {[%emt 0:9:35]} 13. Nf4 {[%emt 0:0:55]} Qe8 {[%emt 0:1:51]} 14. g3 {[%emt 0:0:56]} a4 {[%emt 0:7:24]} 15. Qd1 {[%emt 0:0:24]} d5 {[%emt 0:1:5]} 16. cxd5 {[%emt 0:6:34]} Na5 {[%emt 0:0:20]} 17. gxh4 {[%emt 0:0:47]} Bd6 {[%emt 0:2:44]} 18. Nh5 {[%emt 0:0:9]} Nxh5 {[%emt 0:0:55]} 19. Bxh5 {[%emt 0:0:9]} Qe7 {[%emt 0:1:32]} 20. Rg5 {[%emt 0:2:32]} f4 {[%emt 0:4:0]} 21. Bg6 {[%emt 0:2:3]} fxe3 {[%emt 0:3:34]} 22. Qh5 {[%emt 0:1:59]} exf2+ {[%emt 0:1:5]} 23. Ke2 {[%emt 0:0:17]} f1=Q+ {[%emt 0:1:37]} 24. Nxf1 {[%emt 0:0:8]} Rf2+ {[%emt 0:1:6]} 25. Kxf2 {[%emt 0:0:15]} Qf6+ {[%emt 0:0:22]} 26. Kg1 {[%emt 0:2:45]} Bxh3 {[%emt 0:0:56]} 27. Bf5 {[%emt 0:0:54]} Qxd4+ {[%emt 0:1:3]} 28. Be3 {[%emt 0:0:36]} Qxb2 {[%emt 0:0:45]} 29. Bxh3 {[%emt 0:0:19]} Qxa1 {[%emt 0:1:20]} 30. Be6+ {[%emt 0:0:9]} Kf8 {[%emt 0:0:3]} 31. Qf7# {[%emt 0:0:7]} 1-0

[Event "57th Biel Festival MTO 2024"]
[White "Mata,Adilson"]
[Black "Padmini,Rout"]
[Site "Biel"]
[Round "4.40"]
[Annotator "RC"]
[Result "0-1"]
[Date "2024.07.18"]
[WhiteElo "1971"]
[BlackElo "2348"]
[PlyCount "66"]
[TimeControl "60"]

1. c4 {[%emt 0:0:13]} e5 {[%emt 0:0:48]} 2. g3 {[%emt 0:0:6]} d6 {[%emt 0:4:33]} 3. Bg2 {[%emt 0:0:15]} f5 {[%emt 0:0:48]} 4. d4 {[%emt 0:6:37]} Nd7 {[%emt 0:5:41]} 5. Nc3 {[%emt 0:1:9]} Ngf6 {[%emt 0:1:37]} 6. e4 {[%emt 0:1:34]} fxe4 {[%emt 0:1:11]} 7. Nxe4 {[%emt 0:0:30]} Nxe4 {[%emt 0:4:38]} 8. Bxe4 {[%emt 0:0:12]} Nf6 {[%emt 0:0:6]} 9. Bg5 {[%emt 0:2:37]} Be7 {[%emt 0:3:19]} 10. Bxf6 {[%emt 0:12:11]} Bxf6 {[%emt 0:0:26]} 11. d5 {[%emt 0:0:12]} O-O {[%emt 0:1:5]} 12. Qd3 {[%emt 0:0:42]} g6 {[%emt 0:4:48]} 13. h4 {[%emt 0:2:51]} Bf5 {[%emt 0:4:7]} 14. Bxf5 {[%emt 0:12:6]} gxf5 {[%emt 0:0:50]} 15. Qxf5 {[%emt 0:0:12]} e4 {[%emt 0:1:6]} 16. Qe6+ {[%emt 0:3:18]} Kh8 {[%emt 0:0:9]} 17. O-O-O {[%emt 0:0:23]} Re8 {[%emt 0:24:16]} 18. Qf7 {[%emt 0:9:11]} Rf8 {[%emt 0:5:59]} 19. Qe6 {[%emt 0:0:34]} c5 {[%emt 0:12:38]} 20. Nh3 {[%emt 0:28:38]} Qa5 {[%emt 0:2:19]} 21. Qxe4 {[%emt 0:1:54]} Qxa2 {[%emt 0:0:19]} 22. Rd2 {[%emt 0:0:12]} Rae8 {[%emt 0:4:10]} 23. Qd3 {[%emt 0:0:15]} Qa1+ {[%emt 0:5:48]} 24. Qb1 {[%emt 0:0:59]} Qa4 {[%emt 0:0:25]} 25. b3 {[%emt 0:2:53]} Qa5 {[%emt 0:1:25]} 26. Ng5 {[%emt 0:1:42]} Qc3+ {[%emt 0:0:42]} 27. Qc2 {[%emt 0:3:3]} Qa1+ {[%emt 0:0:39]} 28. Qb1 {[%emt 0:0:9]} Qc3+ {[%emt 0:0:9]} 29. Kd1 {[%emt 0:0:53]} Re7 {[%emt 0:1:33]} 30. Rd3 {[%emt 0:4:24]} Qa5 {[%emt 0:1:59]} 31. Re3 {[%emt 0:0:54]} Bxg5 {[%emt 0:8:2]} 32. hxg5 {[%emt 0:0:16]} Rxf2 {[%emt 0:0:12]} 33. Rd3 {[%emt 0:13:58]} Ra2 {[%emt 0:3:17]} 0-1

[Event "57th Biel Festival MTO 2024"]
[White "Gueci,Tea"]
[Black "Coles,Robin"]
[Site "Biel"]
[Round "4.41"]
[Annotator "RC"]
[Result "1/2-1/2"]
[Date "2024.07.18"]
[WhiteElo "2228"]
[BlackElo "2084"]
[PlyCount "93"]
[TimeControl "60"]

1. e4 {[%emt 0:0:3]} e6 {[%emt 0:3:12]} 2. d4 {[%emt 0:0:3]} d5 {[%emt 0:0:4]} 3. e5 {[%emt 0:0:4]} c5 {[%emt 0:0:3]} 4. c3 {[%emt 0:0:3]} Qb6 {[%emt 0:0:4]} 5. Nf3 {[%emt 0:0:5]} Bd7 {[%emt 0:0:33]} 6. Be2 {[%emt 0:1:5]} Bb5 {[%emt 0:1:38]} 7. dxc5 {[%emt 0:0:53]} Bxc5 {[%emt 0:1:25]} 8. b4 {[%emt 0:0:48]} Bxe2 {[%emt 0:2:15]} 9. Qxe2 {[%emt 0:2:11]} Bf8 {[%emt 0:1:49]} 10. O-O {[%emt 0:1:55]} Ne7 {[%emt 0:2:54]} 11. a4 {[%emt 0:3:40]} Nd7 {[%emt 0:12:27]} 12. Na3 {[%emt 0:7:9]} a6 {[%emt 0:0:0]} 13. Bd2 {[%emt 0:7:27]} Nc6 {[%emt 0:8:57]} 14. Rfe1 {[%emt 0:3:14]} Be7 {[%emt 0:4:19]} 15. Nc2 {[%emt 0:5:58]} O-O {[%emt 0:1:47]} 16. h4 {[%emt 0:3:5]} Rae8 {[%emt 0:3:11]} 17. a5 {[%emt 0:10:57]} Qd8 {[%emt 0:6:37]} 18. c4 {[%emt 0:4:47]} Bxh4 {[%emt 0:12:44]} 19. b5 {[%emt 0:1:24]} Ncxe5 {[%emt 0:1:32]} 20. Nxe5 {[%emt 0:6:36]} Nxe5 {[%emt 0:2:39]} 21. Qxe5 {[%emt 0:0:35]} Bf6 {[%emt 0:0:14]} 22. Qe2 {[%emt 0:3:47]} Bxa1 {[%emt 0:0:45]} 23. Rxa1 {[%emt 0:1:23]} axb5 {[%emt 0:6:16]} 24. cxb5 {[%emt 0:1:27]} f6 {[%emt 0:5:12]} 25. a6 {[%emt 0:4:56]} bxa6 {[%emt 0:0:53]} 26. bxa6 {[%emt 0:0:34]} e5 {[%emt 0:9:34]} 27. Qb5 {[%emt 0:6:25]} Qa8 {[%emt 0:5:15]} 28. Nb4 {[%emt 0:2:56]} d4 {[%emt 0:4:4]} 29. Nd5 {[%emt 0:2:18]} Rb8 {[%emt 0:1:59]} 30. Qa5 {[%emt 0:2:20]} Rf7 {[%emt 0:6:0]} 31. Nc7 {[%emt 0:5:19]} Qa7 {[%emt 0:1:28]} 32. Nb5 {[%emt 0:1:0]} Qc5 {[%emt 0:1:41]} 33. a7 {[%emt 0:0:46]} Ra8 {[%emt 0:0:27]} 34. Bb4 {[%emt 0:3:41]} Qd5 {[%emt 0:1:1]} 35. Qb6 {[%emt 0:5:52]} Rb7 {[%emt 0:2:16]} 36. Nc7 {[%emt 0:0:45]} Rxb6 {[%emt 0:0:20]} 37. Nxd5 {[%emt 0:0:3]} Rb5 {[%emt 0:0:8]} 38. Nc7 {[%emt 0:4:0]} Rxa7 {[%emt 0:0:6]} 39. Rxa7 {[%emt 0:0:7]} Rxb4 {[%emt 0:0:2]} 40. Ne6 {[%emt 0:0:22]} Rb1+ {[%emt 0:0:19]} 41. Kh2 {[%emt 0:50:17]} g6 {[%emt 0:9:53]} 42. Rg7+ {[%emt 0:0:0]} Kh8 {[%emt 0:0:2]} 43. Rf7 {[%emt 0:0:0]} Rb8 {[%emt 0:0:18]} 44. Rd7 {[%emt 0:0:0]} Kg8 {[%emt 0:7:18]} 45. f4 {[%emt 0:0:0]} Re8 {[%emt 0:8:46]} 46. Nc7 {[%emt 0:0:0]} Rf8 {[%emt 0:1:2]} 47. Ne6 {[%emt 0:0:0]} 1/2-1/2

[Event "57th Biel Festival MTO 2024"]
[White "Kuandykuly,Danis"]
[Black "Federer,Colin"]
[Site "Biel"]
[Round "4.42"]
[Annotator "RC"]
[Result "1-0"]
[Date "2024.07.18"]
[WhiteElo "1989"]
[BlackElo "2187"]
[PlyCount "73"]
[TimeControl "60"]

1. e4 {[%emt 0:10:19]} c5 {[%emt 0:0:4]} 2. Nf3 {[%emt 0:0:12]} d6 {[%emt 0:0:5]} 3. d4 {[%emt 0:0:3]} cxd4 {[%emt 0:0:5]} 4. Nxd4 {[%emt 0:0:2]} Nf6 {[%emt 0:0:7]} 5. Nc3 {[%emt 0:0:4]} a6 {[%emt 0:0:18]} 6. Bg5 {[%emt 0:0:5]} Nbd7 {[%emt 0:0:6]} 7. Bc4 {[%emt 0:0:21]} Qb6 {[%emt 0:0:10]} 8. Bb3 {[%emt 0:0:40]} e6 {[%emt 0:0:29]} 9. Qd2 {[%emt 0:0:4]} Be7 {[%emt 0:0:27]} 10. O-O-O {[%emt 0:0:6]} Nc5 {[%emt 0:0:46]} 11. f3 {[%emt 0:0:9]} Qc7 {[%emt 0:6:10]} 12. g4 {[%emt 0:0:4]} b5 {[%emt 0:0:54]} 13. a3 {[%emt 0:0:4]} Nxb3+ {[%emt 0:2:23]} 14. cxb3 {[%emt 0:2:29]} h6 {[%emt 0:5:30]} 15. Be3 {[%emt 0:0:30]} d5 {[%emt 0:5:22]} 16. e5 {[%emt 0:0:40]} Nd7 {[%emt 0:0:12]} 17. f4 {[%emt 0:0:16]} b4 {[%emt 0:0:44]} 18. axb4 {[%emt 0:0:14]} Bxb4 {[%emt 0:0:12]} 19. Kb1 {[%emt 0:1:10]} Nc5 {[%emt 0:2:31]} 20. Nxd5 {[%emt 0:1:18]} exd5 {[%emt 0:2:23]} 21. Qxb4 {[%emt 0:0:7]} Rb8 {[%emt 0:6:36]} 22. Qc3 {[%emt 0:1:51]} Bxg4 {[%emt 0:10:42]} 23. Rc1 {[%emt 0:0:13]} Rc8 {[%emt 0:0:24]} 24. Rhg1 {[%emt 0:1:29]} h5 {[%emt 0:7:12]} 25. b4 {[%emt 0:0:29]} Ne6 {[%emt 0:0:17]} 26. Nxe6 {[%emt 0:0:10]} Qxc3 {[%emt 0:0:21]} 27. Nxg7+ {[%emt 0:0:8]} Kf8 {[%emt 0:0:3]} 28. Rxc3 {[%emt 0:0:38]} Rxc3 {[%emt 0:3:4]} 29. bxc3 {[%emt 0:0:7]} f6 {[%emt 0:1:59]} 30. exf6 {[%emt 0:0:28]} Kf7 {[%emt 0:1:1]} 31. Bd4 {[%emt 0:0:8]} Rb8 {[%emt 0:2:5]} 32. Re1 {[%emt 0:0:15]} a5 {[%emt 0:0:30]} 33. Re7+ {[%emt 0:0:34]} Kf8 {[%emt 0:0:43]} 34. Bc5 {[%emt 0:0:10]} Kg8 {[%emt 0:0:42]} 35. Ne8 {[%emt 0:1:6]} Bf5+ {[%emt 0:0:16]} 36. Kb2 {[%emt 0:0:4]} Bg6 {[%emt 0:0:10]} 37. Rg7+ {[%emt 0:0:5]} 1-0

[Event "57th Biel Festival MTO 2024"]
[White "Kersten,Uwe"]
[Black "Perreard,Nicolas"]
[Site "Biel"]
[Round "4.43"]
[Annotator "RC"]
[Result "1/2-1/2"]
[Date "2024.07.18"]
[WhiteElo "2189"]
[BlackElo "2060"]
[PlyCount "21"]
[TimeControl "60"]

1. e4 {[%emt 0:1:56]} e5 {[%emt 0:0:7]} 2. Nc3 {[%emt 0:0:8]} Nf6 {[%emt 0:0:8]} 3. d4 {[%emt 0:0:28]} exd4 {[%emt 0:1:15]} 4. Qxd4 {[%emt 0:0:3]} Nc6 {[%emt 0:0:28]} 5. Qd3 {[%emt 0:0:7]} Bc5 {[%emt 0:4:32]} 6. Bf4 {[%emt 0:0:39]} d6 {[%emt 0:1:0]} 7. Qd2 {[%emt 0:17:4]} Ng4 {[%emt 0:10:28]} 8. Bg3 {[%emt 0:4:54]} Be6 {[%emt 0:7:38]} 9. O-O-O {[%emt 0:4:55]} Qf6 {[%emt 0:9:57]} 10. Nf3 {[%emt 0:10:12]} Bb4 {[%emt 0:0:34]} 11. a3 {[%emt 0:23:20]} 1/2-1/2

[Event "57th Biel Festival MTO 2024"]
[White "Kamber,Bruno"]
[Black "Udipi,Kala Kishan"]
[Site "Biel"]
[Round "4.44"]
[Annotator "RC"]
[Result "1-0"]
[Date "2024.07.18"]
[WhiteElo "2188"]
[BlackElo "2051"]
[PlyCount "155"]
[TimeControl "60"]

1. e4 {[%emt 0:0:6]} c5 {[%emt 0:0:47]} 2. Nf3 {[%emt 0:0:15]} Nc6 {[%emt 0:0:53]} 3. Bb5 {[%emt 0:0:36]} g6 {[%emt 0:0:10]} 4. Bxc6 {[%emt 0:3:22]} dxc6 {[%emt 0:0:6]} 5. d3 {[%emt 0:0:16]} Bg4 {[%emt 0:2:44]} 6. Nbd2 {[%emt 0:0:44]} Bg7 {[%emt 0:0:22]} 7. h3 {[%emt 0:0:17]} Bxf3 {[%emt 0:0:12]} 8. Nxf3 {[%emt 0:0:10]} e5 {[%emt 0:0:44]} 9. Be3 {[%emt 0:0:55]} Qd6 {[%emt 0:1:44]} 10. Qd2 {[%emt 0:1:7]} h6 {[%emt 0:2:37]} 11. Qc3 {[%emt 0:1:47]} b6 {[%emt 0:0:17]} 12. a4 {[%emt 0:0:43]} Nf6 {[%emt 0:5:19]} 13. a5 {[%emt 0:10:17]} O-O {[%emt 0:0:56]} 14. O-O {[%emt 0:2:30]} Nd5 {[%emt 0:31:1]} 15. Qd2 {[%emt 0:10:40]} Nxe3 {[%emt 0:2:20]} 16. Qxe3 {[%emt 0:0:6]} b5 {[%emt 0:0:51]} 17. a6 {[%emt 0:1:42]} Rfd8 {[%emt 0:1:33]} 18. Rfd1 {[%emt 0:2:13]} Bf8 {[%emt 0:2:27]} 19. Nd2 {[%emt 0:2:35]} Qd4 {[%emt 0:1:15]} 20. Qxd4 {[%emt 0:1:52]} cxd4 {[%emt 0:0:21]} 21. Nf3 {[%emt 0:0:8]} f6 {[%emt 0:3:19]} 22. c3 {[%emt 0:0:19]} c5 {[%emt 0:11:51]} 23. Kf1 {[%emt 0:6:4]} Rab8 {[%emt 0:1:42]} 24. Ke2 {[%emt 0:0:41]} Rb6 {[%emt 0:8:6]} 25. cxd4 {[%emt 0:5:16]} cxd4 {[%emt 0:0:42]} 26. Rdc1 {[%emt 0:0:10]} Rdd6 {[%emt 0:2:32]} 27. Rc7 {[%emt 0:0:12]} Rxa6 {[%emt 0:0:11]} 28. Rxa7 {[%emt 0:0:5]} Rxa1 {[%emt 0:0:14]} 29. Rxa1 {[%emt 0:0:10]} Rc6 {[%emt 0:0:29]} 30. Kd1 {[%emt 0:0:11]} Bb4 {[%emt 0:2:15]} 31. Ra7 {[%emt 0:1:35]} Bc5 {[%emt 0:11:24]} 32. Rb7 {[%emt 0:4:21]} Rb6 {[%emt 0:0:16]} 33. Rc7 {[%emt 0:0:17]} Bd6 {[%emt 0:0:27]} 34. Rd7 {[%emt 0:0:43]} b4 {[%emt 0:1:6]} 35. Nd2 {[%emt 0:0:47]} Bf8 {[%emt 0:0:37]} 36. Ra7 {[%emt 0:4:47]} b3 {[%emt 0:1:25]} 37. Nc4 {[%emt 0:1:42]} Rb5 {[%emt 0:4:5]} 38. Ra6 {[%emt 0:1:42]} Kf7 {[%emt 0:0:28]} 39. g4 {[%emt 0:3:39]} g5 {[%emt 0:3:1]} 40. Nb6 {[%emt 0:6:44]} Be7 {[%emt 0:8:16]} 41. Nc4 {[%emt 0:53:22]} Bb4 {[%emt 0:16:10]} 42. Ra7+ {[%emt 0:0:0]} Ke6 {[%emt 0:0:47]} 43. Ke2 {[%emt 0:0:0]} Rb8 {[%emt 0:0:46]} 44. Rc7 {[%emt 0:0:0]} Rb5 {[%emt 0:1:9]} 45. Rh7 {[%emt 0:0:0]} Bf8 {[%emt 0:0:15]} 46. Nd2 {[%emt 0:0:0]} Rb6 {[%emt 0:1:23]} 47. Rc7 {[%emt 0:0:0]} Bb4 {[%emt 0:2:6]} 48. Nc4 {[%emt 0:0:0]} Rb5 {[%emt 0:1:2]} 49. Rc8 {[%emt 0:0:0]} Kf7 {[%emt 0:0:51]} 50. Rh8 {[%emt 0:0:0]} Bf8 {[%emt 0:0:36]} 51. Rxh6 {[%emt 0:1:47]} Rb4 {[%emt 0:10:14]} 52. Rh7+ {[%emt 0:0:39]} Bg7 {[%emt 0:0:30]} 53. h4 {[%emt 0:0:16]} Kg6 {[%emt 0:1:3]} 54. Rh5 {[%emt 0:0:8]} gxh4 {[%emt 0:0:23]} 55. Rxh4 {[%emt 0:3:59]} Ra4 {[%emt 0:0:50]} 56. Rh1 {[%emt 0:4:43]} Ra2 {[%emt 0:0:30]} 57. f4 {[%emt 0:3:13]} Kf7 {[%emt 0:2:54]} 58. Kf3 {[%emt 0:0:44]} Kg6 {[%emt 0:1:2]} 59. g5 {[%emt 0:7:11]} fxg5 {[%emt 0:2:38]} 60. fxe5 {[%emt 0:0:11]} Ra8 {[%emt 0:2:0]} 61. Kg4 {[%emt 0:15:28]} Re8 {[%emt 0:17:42]} 62. Ra1 {[%emt 0:0:24]} Bxe5 {[%emt 0:0:8]} 63. Ra6+ {[%emt 0:0:9]} Kf7 {[%emt 0:1:2]} 64. Kxg5 {[%emt 0:0:59]} Bc7 {[%emt 0:0:31]} 65. Kf5 {[%emt 0:0:54]} Ke7 {[%emt 0:0:51]} 66. e5 {[%emt 0:0:19]} Rh8 {[%emt 0:0:17]} 67. Ke4 {[%emt 0:0:21]} Rh4+ {[%emt 0:0:13]} 68. Kd5 {[%emt 0:0:4]} Kd7 {[%emt 0:0:10]} 69. Rg6 {[%emt 0:0:39]} Bd8 {[%emt 0:0:42]} 70. Rg7+ {[%emt 0:1:27]} Be7 {[%emt 0:1:7]} 71. e6+ {[%emt 0:2:47]} Kd8 {[%emt 0:0:45]} 72. Kc6 {[%emt 0:0:36]} Rh8 {[%emt 0:0:55]} 73. Nd6 {[%emt 0:5:26]} Rf8 {[%emt 0:1:5]} 74. Nf7+ {[%emt 0:2:38]} Kc8 {[%emt 0:0:46]} 75. Rh7 {[%emt 0:1:25]} Rg8 {[%emt 0:0:53]} 76. Nd6+ {[%emt 0:0:45]} Kd8 {[%emt 0:0:9]} 77. Nf5 {[%emt 0:0:19]} Bb4 {[%emt 0:1:9]} 78. Rb7 {[%emt 0:0:39]} 1-0

[Event "57th Biel Festival MTO 2024"]
[White "Demchenko,Svitlana"]
[Black "Monteverde,Jonathan"]
[Site "Biel"]
[Round "4.45"]
[Annotator "RC"]
[Result "1-0"]
[Date "2024.07.18"]
[WhiteElo "2176"]
[BlackElo "2052"]
[PlyCount "77"]
[TimeControl "60"]

1. e4 {[%emt 0:1:42]} c5 {[%emt 0:0:11]} 2. Nf3 {[%emt 0:0:19]} d6 {[%emt 0:0:4]} 3. Bb5+ {[%emt 0:0:9]} Nd7 {[%emt 0:0:7]} 4. d4 {[%emt 0:0:12]} cxd4 {[%emt 0:1:47]} 5. Nxd4 {[%emt 0:0:15]} Ngf6 {[%emt 0:2:26]} 6. O-O {[%emt 0:1:47]} a6 {[%emt 0:1:1]} 7. Bd3 {[%emt 0:0:44]} g6 {[%emt 0:6:33]} 8. c4 {[%emt 0:2:21]} Bg7 {[%emt 0:0:29]} 9. Nc3 {[%emt 0:1:34]} O-O {[%emt 0:3:32]} 10. Be3 {[%emt 0:10:23]} Ne5 {[%emt 0:22:9]} 11. h3 {[%emt 0:1:51]} Be6 {[%emt 0:3:42]} 12. b3 {[%emt 0:7:15]} Rc8 {[%emt 0:6:14]} 13. Rc1 {[%emt 0:11:24]} Nc6 {[%emt 0:10:43]} 14. Be2 {[%emt 0:8:59]} Nxd4 {[%emt 0:0:53]} 15. Bxd4 {[%emt 0:0:15]} Nd7 {[%emt 0:0:30]} 16. Bxg7 {[%emt 0:4:25]} Kxg7 {[%emt 0:0:6]} 17. f4 {[%emt 0:0:29]} Qb6+ {[%emt 0:13:9]} 18. Kh1 {[%emt 0:1:1]} f5 {[%emt 0:0:14]} 19. exf5 {[%emt 0:5:4]} gxf5 {[%emt 0:0:31]} 20. Bf3 {[%emt 0:6:28]} Bf7 {[%emt 0:13:14]} 21. Qd2 {[%emt 0:13:21]} Nf6 {[%emt 0:2:55]} 22. g4 {[%emt 0:3:54]} fxg4 {[%emt 0:5:6]} 23. hxg4 {[%emt 0:0:28]} h5 {[%emt 0:0:15]} 24. f5 {[%emt 0:15:35]} Rh8 {[%emt 0:2:24]} 25. g5 {[%emt 0:7:7]} Ng4 {[%emt 0:0:4]} 26. Ne4 {[%emt 0:1:0]} Qe3 {[%emt 0:2:32]} 27. f6+ {[%emt 0:1:28]} exf6 {[%emt 0:1:12]} 28. gxf6+ {[%emt 0:0:37]} Kh6 {[%emt 0:5:35]} 29. Qxe3+ {[%emt 0:2:20]} Nxe3 {[%emt 0:0:6]} 30. Nxd6 {[%emt 0:0:6]} Rcf8 {[%emt 0:4:24]} 31. Rfe1 {[%emt 0:2:19]} Ng4 {[%emt 0:0:8]} 32. Re7 {[%emt 0:0:47]} Bg6 {[%emt 0:0:50]} 33. Bxg4 {[%emt 0:0:41]} hxg4 {[%emt 0:0:6]} 34. f7 {[%emt 0:0:21]} Bxf7 {[%emt 0:2:27]} 35. Kg2 {[%emt 0:0:36]} Kg6 {[%emt 0:0:22]} 36. Rf1 {[%emt 0:0:30]} Be8 {[%emt 0:1:27]} 37. Re6+ {[%emt 0:0:22]} Kg5 {[%emt 0:1:0]} 38. Ne4+ {[%emt 0:0:32]} Kh4 {[%emt 0:0:28]} 39. Rh1# {[%emt 0:0:6]} 1-0

[Event "57th Biel Festival MTO 2024"]
[White "Tkhoruk,Roman"]
[Black "Rappazzo,Johannes"]
[Site "Biel"]
[Round "4.46"]
[Annotator "RC"]
[Result "0-1"]
[Date "2024.07.18"]
[WhiteElo "1944"]
[BlackElo "2169"]
[PlyCount "84"]
[TimeControl "60"]

1. Nf3 {[%emt 0:2:37]} Nf6 {[%emt 0:0:4]} 2. g3 {[%emt 0:0:11]} g6 {[%emt 0:0:5]} 3. Bg2 {[%emt 0:0:11]} Bg7 {[%emt 0:0:6]} 4. O-O {[%emt 0:0:10]} O-O {[%emt 0:0:7]} 5. c4 {[%emt 0:0:8]} d6 {[%emt 0:0:36]} 6. Nc3 {[%emt 0:0:57]} c5 {[%emt 0:0:18]} 7. d3 {[%emt 0:0:21]} Nc6 {[%emt 0:0:30]} 8. Bd2 {[%emt 0:0:30]} Rb8 {[%emt 0:0:30]} 9. Qc1 {[%emt 0:0:30]} Re8 {[%emt 0:0:30]} 10. e4 {[%emt 0:0:30]} a6 {[%emt 0:0:30]} 11. a4 {[%emt 0:0:30]} Nd7 {[%emt 0:0:30]} 12. Ne1 {[%emt 0:0:30]} Nd4 {[%emt 0:0:30]} 13. Qd1 {[%emt 0:0:30]} Ne5 {[%emt 0:0:30]} 14. Be3 {[%emt 0:0:30]} Nec6 {[%emt 0:0:30]} 15. Nc2 {[%emt 0:0:30]} b5 {[%emt 0:0:30]} 16. axb5 {[%emt 0:0:30]} axb5 {[%emt 0:0:30]} 17. Rb1 {[%emt 0:0:30]} bxc4 {[%emt 0:0:30]} 18. dxc4 {[%emt 0:0:30]} Ba6 {[%emt 0:51:8]} 19. Bxd4 {[%emt 0:59:51]} cxd4 {[%emt 0:12:27]} 20. Nb5 {[%emt 0:3:3]} Bxb5 {[%emt 0:13:40]} 21. cxb5 {[%emt 0:0:21]} Rxb5 {[%emt 0:0:30]} 22. e5 {[%emt 0:0:30]} Nxe5 {[%emt 0:0:30]} 23. Nxd4 {[%emt 0:0:30]} Rb4 {[%emt 0:0:30]} 24. Kh1 {[%emt 0:0:30]} Qb6 {[%emt 0:0:30]} 25. Nc2 {[%emt 0:0:30]} Rxb2 {[%emt 0:0:30]} 26. Rxb2 {[%emt 0:0:30]} Qxb2 {[%emt 0:0:30]} 27. f4 {[%emt 0:0:30]} Nd7 {[%emt 0:0:30]} 28. Bc6 {[%emt 0:0:30]} Rc8 {[%emt 0:0:30]} 29. Qf3 {[%emt 0:0:30]} Nb8 {[%emt 0:0:30]} 30. Be4 {[%emt 0:0:30]} Rxc2 {[%emt 0:0:30]} 31. Bxc2 {[%emt 0:0:30]} Qxc2 {[%emt 0:0:30]} 32. Qb7 {[%emt 0:0:30]} Qc6+ {[%emt 0:0:30]} 33. Qxc6 {[%emt 0:0:30]} Nxc6 {[%emt 0:0:30]} 34. Rc1 {[%emt 0:0:30]} Nd4 {[%emt 0:0:30]} 35. Rc8+ {[%emt 0:0:30]} Bf8 {[%emt 0:0:30]} 36. Kg2 {[%emt 0:0:30]} Kg7 {[%emt 0:0:30]} 37. Kf2 {[%emt 0:0:30]} e5 {[%emt 0:0:30]} 38. Ke3 {[%emt 0:0:30]} Nf5+ {[%emt 0:0:30]} 39. Kf3 {[%emt 0:0:30]} h5 {[%emt 0:0:30]} 40. Re8 {[%emt 0:0:30]} exf4 {[%emt 0:0:30]} 41. Kxf4 {[%emt 0:50:30]} d5 {[%emt 0:50:30]} 42. Ke5 {[%emt 0:0:30]} d4 {[%emt 0:24:26]} 0-1